fUSD/lending_fUSD_20240527
["ID","MTS","AMOUNT","RATE_DAILY","PERIOD"]
[328045826,1716815451161,-518.31691849,0.00032876,7]
[328045827,1716815451170,-500.0,0.00032876,7]
[328045828,1716815451179,-568.34,0.00032876,7]
[328045829,1716815451189,-500.0,0.00032876,7]
[328045830,1716815451198,-568.34,0.00032876,7]
[328045831,1716815451208,-500.0,0.00032876,7]
[328045832,1716815451217,-568.34,0.00032876,7]
[328045833,1716815451227,-509.27424553,0.00032876,7]
[328045834,1716815451237,-500.0,0.00032876,7]
[328045835,1716815451247,-500.0,0.00032876,7]
[328045836,1716815451256,-500.0,0.00032876,7]
[328045837,1716815451266,-500.0,0.00032876,7]
[328045838,1716815451275,-500.0,0.00032876,7]
[328045839,1716815451285,-500.0,0.00032876,7]
[328045840,1716815451295,-500.0,0.00032876,7]
[328045841,1716815451304,-542.42787638,0.00032876,7]
[328045842,1716815451314,-500.0,0.00032876,7]
[328045843,1716815451323,-431.60567019,0.00032876,7]
[328045844,1716815451333,-500.0,0.00032876,7]
[328045845,1716815451342,-500.0,0.00032876,7]
[328045846,1716815451352,-500.0,0.00032876,7]
[328045847,1716815451488,-505.96076224,0.00032876,7]
[328045848,1716815451498,-500.0,0.00032876,7]
[328045849,1716815451507,-500.0,0.00032876,7]
[328045850,1716815451516,-500.0,0.00032876,7]
[328045851,1716815451525,-500.0,0.00032876,7]
[328045852,1716815451534,-178.17,0.00032876,7]
[328045853,1716815451543,-500.0,0.00032876,7]
[328045854,1716815451552,-937.68,0.00032876,7]
[328045855,1716815451562,-500.0,0.00032876,7]
[328045856,1716815451571,-937.68,0.00032876,7]
[328045857,1716815451581,-937.68,0.00032876,7]
[328045858,1716815451590,-937.68,0.00032876,7]
[328045859,1716815451599,-320.89758154,0.00032876,7]
[328045860,1716815451610,-937.68,0.00032876,7]
[328045861,1716815451619,-937.68,0.00032876,7]
[328045862,1716815451629,-937.68,0.00032876,7]
[328045863,1716815451638,-937.68,0.00032876,7]
[328045864,1716815451647,-937.68,0.00032876,7]
[328045865,1716815451656,-937.68,0.00032876,7]
[328045866,1716815451666,-937.68,0.00032876,7]
[328045867,1716815451675,-937.68,0.00032876,7]
[328045868,1716815451685,-937.68,0.00032876,7]
[328045869,1716815451694,-937.68,0.00032876,7]
[328045870,1716815451703,-500.0,0.00032876,7]
[328045871,1716815451713,-937.68,0.00032876,7]
[328045872,1716815451726,-500.0,0.00032876,7]
[328045873,1716815451735,-937.68,0.00032876,7]
[328045874,1716815451745,-500.0,0.00032876,7]
[328045875,1716815451755,-937.68,0.00032876,7]
[328045876,1716815451764,-500.0,0.00032876,7]
[328045877,1716815451774,-937.68,0.00032876,7]
[328045878,1716815451783,-500.0,0.00032876,7]
[328045879,1716815451792,-937.68,0.00032876,7]
[328045880,1716815451803,-500.0,0.00032876,7]
[328045881,1716815451812,-500.0,0.00032876,7]
[328045882,1716815451821,-937.68,0.00032876,7]
[328045883,1716815451831,-937.68,0.00032876,7]
[328045884,1716815451840,-500.0,0.00032876,7]
[328045885,1716815451849,-937.68,0.00032876,7]
[328045886,1716815451860,-500.0,0.00032876,7]
[328045887,1716815451870,-937.68,0.00032876,7]
[328045888,1716815451880,-500.0,0.00032876,7]
[328045889,1716815451889,-937.89,0.00032876,7]
[328045890,1716815451898,-500.0,0.00032876,7]
[328045891,1716815451908,-212.188408,0.00032876,7]
[328045892,1716815451917,-429.84405917,0.00032876,7]
[328045893,1716815451926,-538.23178807,0.00032876,7]
[328045894,1716815451935,-500.0,0.00032876,7]
[328045895,1716815451945,-500.0,0.00032876,7]
[328045896,1716815451954,-500.0,0.00032876,7]
[328045897,1716815451963,-522.12659502,0.00032876,7]
[328045898,1716815451973,-500.0,0.00032876,7]
[328045899,1716815451982,-642.99,0.00032876,7]
[328045900,1716815451991,-1166.18,0.00032876,7]
[328045901,1716815452001,-500.0,0.00032876,7]
[328045902,1716815452010,-500.0,0.00032876,7]
[328045903,1716815452020,-1166.18,0.00032876,7]
[328045904,1716815452029,-500.0,0.00032876,7]
[328045905,1716815452039,-1166.18,0.00032876,7]
[328045906,1716815452048,-500.0,0.00032876,7]
[328045907,1716815452057,-1166.18,0.00032876,7]
[328045908,1716815452068,-928.58,0.00032876,7]
[328045909,1716815452077,-500.0,0.00032876,7]
[328045910,1716815452086,-1166.18,0.00032876,7]
[328045911,1716815452096,-976.21,0.00032876,7]
[328045912,1716815452106,-928.58,0.00032876,7]
[328045913,1716815452116,-500.0,0.00032876,7]
[328045914,1716815452125,-1166.18,0.00032876,7]
[328045915,1716815452135,-928.58,0.00032876,7]
[328045916,1716815452146,-500.0,0.00032876,7]
[328045917,1716815452156,-976.21,0.00032876,7]
[328045918,1716815452165,-1166.18,0.00032876,7]
[328045919,1716815452174,-928.58,0.00032876,7]
[328045920,1716815452184,-501.0363839,0.00032876,7]
[328045921,1716815452194,-976.21,0.00032876,7]
[328045922,1716815452204,-1166.18,0.00032876,7]
[328045923,1716815452213,-500.0,0.00032876,7]
[328045924,1716815452223,-928.58,0.00032876,7]
[328045925,1716815452232,-976.21,0.00032876,7]
[328045926,1716815452241,-1166.18,0.00032876,7]
[328045927,1716815452251,-500.0,0.00032876,7]
[328045928,1716815452262,-928.58,0.00032876,7]
[328045929,1716815452271,-976.21,0.00032876,7]
[328045930,1716815452281,-1166.18,0.00032876,7]
[328045931,1716815452291,-500.0,0.00032876,7]
[328045932,1716815452300,-976.21,0.00032876,7]
[328045933,1716815452310,-1166.18,0.00032876,7]
[328045934,1716815452320,-500.0,0.00032876,7]
[328045935,1716815452331,-928.58,0.00032876,7]
[328045936,1716815452341,-976.21,0.00032876,7]
[328045937,1716815452353,-1166.18,0.00032876,7]
[328045938,1716815452364,-500.0,0.00032876,7]
[328045939,1716815452373,-928.58,0.00032876,7]
[328045940,1716815452382,-976.21,0.00032876,7]
[328045941,1716815452391,-500.0,0.00032876,7]
[328045942,1716815452401,-1166.18,0.00032876,7]
[328045943,1716815452410,-928.58,0.00032876,7]
[328045944,1716815452420,-976.21,0.00032876,7]
[328045945,1716815452430,-269.66392319,0.00032876,7]
[328045946,1716815452439,-1166.18,0.00032876,7]
[328045947,1716815452449,-976.21,0.00032876,7]
[328045948,1716815452459,-1166.18,0.00032876,7]
[328045949,1716815452469,-928.58,0.00032876,7]
[328045950,1716815452478,-928.58,0.00032876,7]
[328045951,1716815452487,-976.21,0.00032876,7]
[328045952,1716815452497,-1166.18,0.00032876,7]
[328045953,1716815452506,-976.21,0.00032876,7]
[328045954,1716815452515,-928.58,0.00032876,7]
[328045955,1716815452525,-1166.18,0.00032876,7]
[328045956,1716815452535,-928.58,0.00032876,7]
[328045957,1716815452547,-976.21,0.00032876,7]
[328045958,1716815452557,-1166.18,0.00032876,7]
[328045959,1716815452566,-976.21,0.00032876,7]
[328045960,1716815452575,-928.58,0.00032876,7]
[328045961,1716815452585,-976.21,0.00032876,7]
[328045962,1716815452594,-928.58,0.00032876,7]
[328045963,1716815452603,-976.21,0.00032876,7]
[328045964,1716815452615,-928.58,0.00032876,7]
[328045965,1716815452625,-928.58,0.00032876,7]
[328045966,1716815452635,-976.21,0.00032876,7]
[328045967,1716815452644,-1223.07,0.00032876,7]
[328045968,1716815452655,-1223.07,0.00032876,7]
[328045969,1716815452664,-1223.07,0.00032876,7]
[328045970,1716815452674,-500.0,0.00032876,7]
[328045971,1716815452683,-1223.07,0.00032876,7]
[328045972,1716815452693,-500.0,0.00032876,7]
[328045973,1716815452702,-1223.07,0.00032876,7]
[328045974,1716815452711,-500.0,0.00032876,7]
[328045975,1716815452723,-1223.07,0.00032876,7]
[328045976,1716815452733,-1349.55,0.00032876,7]
[328045977,1716815452743,-1223.07,0.00032876,7]
[328045978,1716815452753,-500.0,0.00032876,7]
[328045979,1716815452763,-1349.55,0.00032876,7]
[328045980,1716815452773,-1223.07,0.00032876,7]
[328045981,1716815452783,-500.0,0.00032876,7]
[328045982,1716815452792,-1223.07,0.00032876,7]
[328045983,1716815452803,-552.59,0.00032876,7]
[328045984,1716815452813,-1349.55,0.00032876,7]
[328045985,1716815452822,-574.35619985,0.00032876,7]
[328045986,1716815452833,-1223.07,0.00032876,7]
[328045987,1716815452843,-552.59,0.00032876,7]
[328045988,1716815452852,-1349.55,0.00032876,7]
[328045989,1716815452863,-1223.07,0.00032876,7]
[328045990,1716815452872,-552.59,0.00032876,7]
[328045991,1716815452882,-1349.55,0.00032876,7]
[328045992,1716815452892,-1223.07,0.00032876,7]
[328045993,1716815452901,-552.59,0.00032876,7]
[328045994,1716815452910,-1349.55,0.00032876,7]
[328045995,1716815452919,-1223.07,0.00032876,7]
[328045996,1716815452930,-552.59,0.00032876,7]
[328045997,1716815452940,-1349.55,0.00032876,7]
[328045998,1716815452950,-1223.07,0.00032876,7]
[328045999,1716815452960,-552.59,0.00032876,7]
[328046000,1716815452969,-1349.55,0.00032876,7]
[328046001,1716815452978,-1223.07,0.00032876,7]
[328046002,1716815452988,-1349.55,0.00032876,7]
[328046003,1716815452998,-552.59,0.00032876,7]
[328046004,1716815453007,-1223.07,0.00032876,7]
[328046005,1716815453017,-1349.55,0.00032876,7]
[328046006,1716815453027,-1223.07,0.00032876,7]
[328046007,1716815453048,-1349.55,0.00032876,7]
[328046008,1716815453059,-552.59,0.00032876,7]
[328046009,1716815453070,-1223.07,0.00032876,7]
[328046010,1716815453080,-1349.55,0.00032876,7]
[328046011,1716815453090,-552.59,0.00032876,7]
[328046012,1716815453100,-552.59,0.00032876,7]
[328046013,1716815453111,-779.08,0.00032876,7]
[328046014,1716815453120,-552.59,0.00032876,7]
[328046015,1716815453130,-779.08,0.00032876,7]
[328046016,1716815453140,-1349.55,0.00032876,7]
[328046017,1716815453149,-552.59,0.00032876,7]
[328046018,1716815453159,-779.08,0.00032876,7]
[328046019,1716815453169,-552.59,0.00032876,7]
[328046020,1716815453179,-779.08,0.00032876,7]
[328046021,1716815453188,-552.59,0.00032876,7]
[328046022,1716815453198,-1349.55,0.00032876,7]
[328046023,1716815453208,-552.59,0.00032876,7]
[328046024,1716815453218,-1349.55,0.00032876,7]
[328046025,1716815453227,-552.59,0.00032876,7]
[328046026,1716815453238,-779.08,0.00032876,7]
[328046027,1716815453247,-552.59,0.00032876,7]
[328046028,1716815453257,-779.08,0.00032876,7]
[328046029,1716815453267,-1349.55,0.00032876,7]
[328046030,1716815453276,-779.08,0.00032876,7]
[328046031,1716815453286,-1349.55,0.00032876,7]
[328046032,1716815453296,-779.08,0.00032876,7]
[328046033,1716815453305,-779.08,0.00032876,7]
[328046034,1716815453315,-1349.55,0.00032876,7]
[328046035,1716815453324,-779.08,0.00032876,7]
[328046036,1716815453334,-779.08,0.00032876,7]
[328046037,1716815453343,-779.08,0.00032876,7]
[328046038,1716815453353,-500.0,0.00032876,7]
[328046039,1716815453364,-779.08,0.00032876,7]
[328046040,1716815453374,-779.08,0.00032876,7]
[328046041,1716815453383,-500.0,0.00032876,7]
[328046042,1716815453392,-779.08,0.00032876,7]
[328046043,1716815453402,-500.0,0.00032876,7]
[328046044,1716815453411,-779.08,0.00032876,7]
[328046045,1716815453421,-500.0,0.00032876,7]
[328046046,1716815453430,-779.08,0.00032876,7]
[328046047,1716815453440,-500.0,0.00032876,7]
[328046048,1716815453450,-779.08,0.00032876,7]
[328046049,1716815453459,-500.0,0.00032876,7]
[328046050,1716815453469,-779.08,0.00032876,7]
[328046051,1716815453478,-500.0,0.00032876,7]
[328046052,1716815453488,-779.08,0.00032876,7]
[328046053,1716815453497,-500.0,0.00032876,7]
[328046054,1716815453508,-779.08,0.00032876,7]
[328046055,1716815453517,-500.0,0.00032876,7]
[328046056,1716815453527,-779.08,0.00032876,7]
[328046057,1716815453536,-7333.56,0.00032876,7]
[328046058,1716815453546,-239.57,0.00032876,7]
[328046059,1716815453556,-779.08,0.00032876,7]
[328046060,1716815453565,-7333.56,0.00032876,7]
[328046061,1716815453575,-779.265653,0.00032876,7]
[328046062,1716815453584,-2483.96,0.00032876,7]
[328046063,1716815453594,-7333.56,0.00032876,7]
[328046064,1716815453603,-2483.96,0.00032876,7]
[328046065,1716815453614,-2483.96,0.00032876,7]
[328046066,1716815453624,-7333.56,0.00032876,7]
[328046067,1716815453634,-2483.96,0.00032876,7]
[328046068,1716815453644,-7333.56,0.00032876,7]
[328046069,1716815453654,-2483.96,0.00032876,7]
[328046070,1716815453669,-7333.56,0.00032876,7]
[328046071,1716815453679,-2483.96,0.00032876,7]
[328046072,1716815453689,-7333.56,0.00032876,7]
[328046073,1716815453699,-2483.96,0.00032876,7]
[328046074,1716815453709,-7333.56,0.00032876,7]
[328046075,1716815453722,-2483.96,0.00032876,7]
[328046076,1716815453732,-7333.56,0.00032876,7]
[328046077,1716815453742,-2483.96,0.00032876,7]
[328046078,1716815453752,-6678.07256413,0.00032876,7]
[328046079,1716815454337,-154.0,0.00032876,5]
[328046080,1716815454347,-207.89999998,0.00032876,7]
[328046081,1716815454358,-447.58743589,0.00032876,7]
[328046082,1716815454368,-2483.96,0.00032876,7]
[328046083,1716815454377,-3279.74766333,0.00032876,7]
[328046084,1716815454388,-1409.77499773,0.00032876,7]
[328046085,1716815454399,-1870.6005277,0.00032876,7]
[328046086,1716815658723,158.82,0.00013973,2]
[328046087,1716815701892,882.67288797,0.00013937,2]
[328046088,1716815703083,157.18762496,0.00013937,2]
[328046089,1716815703266,2068.83014874,0.00013937,2]
[328046102,1716816435171,-2331.21370194,0.00017257,2]
[328046103,1716816435193,-131.60660331,0.00017258,2]
[328046119,1716816632095,-1616.31417857,0.00017533,2]
[328046120,1716816632107,-8421.46922863,0.00017533,2]
[328046121,1716816632121,-3602.44257493,0.00017533,2]
[328046122,1716816632133,-14654.8062064,0.00017533,2]
[328046123,1716816632157,-969.45652537,0.00017533,2]
[328046124,1716816632171,-3367.93087916,0.00017533,2]
[328046125,1716816632183,-1384.13538387,0.00017533,2]
[328046126,1716816632194,-811.05669613,0.00017533,2]
[328046127,1716816632214,-472.04,0.00017533,2]
[328046128,1716816632227,-106.95296417,0.00017533,2]
[328046129,1716816632237,-436.42285295,0.000268,5]
[328046130,1716816632318,-4953.89891738,0.000268,5]
[328046131,1716816632330,-2441.17566656,0.000268,5]
[328046132,1716816632342,-2196.97847733,0.000268,5]
[328046133,1716816632355,-544.54262731,0.000268,5]
[328046134,1716816632366,-1145.98145847,0.000268,5]
[328046135,1716816632376,-151.0,0.00027528,7]
[328046136,1716816632385,-23.14834277,0.0002822,2]
[328046137,1716816632426,-225.05165723,0.0002822,2]
[328046139,1716816632436,-151.0,0.00028253,7]
[328046141,1716816632446,-151.0,0.00028977,7]
[328046143,1716816632455,-213.49566964,0.00029587,2]
[328046145,1716816632465,-220.13180605,0.00029587,3]
[328046147,1716816632475,-151.0,0.00029702,7]
[328046149,1716816632485,-1156.59,0.00030061,2]
[328046151,1716816632494,-1008.02014055,0.00030071,2]
[328046153,1716816632504,-250.0,0.00030072,2]
[328046156,1716816632514,-313.5,0.00030101,2]
[328046158,1716816632524,-3061.91072653,0.00030102,2]
[328046160,1716816632536,-418.54007673,0.00030102,2]
[328046208,1716816638962,-736.15686507,0.00030102,2]
[328046209,1716816638974,-9164.10233167,0.00030102,2]
[328046210,1716816638983,-199.9,0.00030129,2]
[328046211,1716816638993,-250.0,0.00030148,2]
[328046212,1716816639002,-150.13,0.00030258,2]
[328046213,1716816639011,-170.9,0.00030352,2]
[328046214,1716816639021,-1675.89,0.00030484,2]
[328046215,1716816639031,-248.2,0.00030484,2]
[328046216,1716816639040,-150.13,0.00030784,2]
[328046217,1716816639050,-732.54,0.00031131,2]
[328046218,1716816639060,-312.71181864,0.0003123,7]
[328046219,1716816639070,-150.0,0.00031297,2]
[328046220,1716816639080,-150.13,0.00031309,2]
[328046221,1716816639090,-1000.0,0.00031473,2]
[328046222,1716816639103,-3003.16774821,0.00031529,4]
[328046223,1716816639112,-150.13,0.00031835,2]
[328046224,1716816639122,-8349.51012228,0.00032,10]
[328046225,1716816639132,-157.40258422,0.00032217,4]
[328046226,1716816639142,-243.32739,0.0003255,2]
[328046227,1716816639152,-12320.6937,0.00032676,2]
[328046228,1716816639162,-326.40257233,0.00032676,2]
[328046229,1716816639171,-391.66561677,0.00032676,2]
[328046230,1716816639183,-281.56623433,0.0003269,2]
[328046231,1716816639192,-281.56623433,0.0003269,2]
[328046232,1716816639202,-281.56623433,0.0003269,2]
[328046233,1716816639212,-281.56623433,0.0003269,2]
[328046234,1716816639221,-281.56623433,0.0003269,2]
[328046235,1716816639231,-281.56623433,0.0003269,2]
[328046236,1716816639240,-281.56623433,0.0003269,2]
[328046237,1716816639250,-281.56623433,0.0003269,2]
[328046238,1716816639259,-281.56623433,0.0003269,2]
[328046239,1716816639269,-281.56623433,0.0003269,2]
[328046240,1716816639280,-281.56623433,0.0003269,2]
[328046241,1716816639289,-281.56623433,0.0003269,2]
[328046242,1716816639299,-281.56623433,0.0003269,2]
[328046244,1716816639308,-281.56623433,0.0003269,2]
[328046246,1716816639319,-281.56623433,0.0003269,2]
[328046248,1716816639328,-281.56623433,0.0003269,2]
[328046250,1716816639338,-281.56623433,0.0003269,2]
[328046252,1716816639349,-281.56623433,0.0003269,2]
[328046254,1716816639358,-281.56623433,0.0003269,2]
[328046256,1716816639369,-281.56623433,0.0003269,2]
[328046258,1716816639378,-281.56623433,0.0003269,2]
[328046260,1716816639388,-281.56623433,0.0003269,2]
[328046262,1716816639398,-281.56623433,0.0003269,2]
[328046265,1716816639407,-281.56623433,0.0003269,2]
[328046267,1716816639417,-281.56623433,0.0003269,2]
[328046269,1716816639427,-281.56623433,0.0003269,2]
[328046271,1716816639436,-281.56623433,0.0003269,2]
[328046272,1716816639446,-281.56623433,0.0003269,2]
[328046275,1716816639456,-281.56623433,0.0003269,2]
[328046277,1716816639466,-281.56623433,0.0003269,2]
[328046279,1716816639475,-281.56623433,0.0003269,2]
[328046281,1716816639485,-281.56623433,0.0003269,2]
[328046283,1716816639495,-281.56623433,0.0003269,2]
[328046285,1716816639504,-281.56623433,0.0003269,2]
[328046287,1716816639514,-281.56623433,0.0003269,2]
[328046289,1716816639523,-281.56623433,0.0003269,2]
[328046290,1716816639532,-281.56623433,0.0003269,2]
[328046293,1716816639542,-281.56623433,0.0003269,2]
[328046294,1716816639552,-281.56623433,0.0003269,2]
[328046296,1716816639562,-11022.92410887,0.00032698,21]
[328046299,1716816639574,-1740.73352774,0.00032698,21]
[328046302,1716816639599,-498.87388707,0.00032698,21]
[328046323,1716816639804,-1949.1599897,0.00032698,21]
[328046325,1716816639814,-22176.6305703,0.000327,2]
[328046329,1716816639842,-6426.3732507,0.000327,2]
[328046331,1716816639854,-88490.63236401,0.000327,7]
[328046333,1716816639864,-281.56623433,0.00032734,2]
[328046335,1716816639874,-2641.61803759,0.00032745,4]
[328046337,1716816639885,-248.2,0.00032748,2]
[328046339,1716816639895,-391.66561671,0.00032762,2]
[328046341,1716816639905,-281.56623433,0.00032766,2]
[328046342,1716816639916,-281.56623433,0.00032766,2]
[328046343,1716816639925,-281.56623433,0.00032766,2]
[328046345,1716816639936,-281.56623433,0.00032766,2]
[328046347,1716816639946,-281.56623433,0.00032766,2]
[328046349,1716816639956,-281.56623433,0.00032766,2]
[328046350,1716816639966,-281.56623433,0.00032766,2]
[328046351,1716816639976,-281.56623433,0.00032766,2]
[328046352,1716816639987,-281.56623433,0.00032766,2]
[328046353,1716816639997,-281.56623433,0.00032766,2]
[328046354,1716816640008,-155.0,0.00032774,4]
[328046355,1716816640019,-1512.76334421,0.00032774,4]
[328046356,1716816640029,-884.1676621,0.00032775,4]
[328046358,1716816640039,-1000.0,0.00032776,2]
[328046359,1716816640050,-5271.8187,0.00032776,2]
[328046360,1716816640060,-10340.6251,0.00032776,2]
[328046361,1716816640070,-167.08175585,0.00032776,2]
[328046362,1716816640080,-400238.03380782,0.00032776,5]
[328046363,1716816640090,-49808.54670061,0.00032776,5]
[328046364,1716816640103,-3169.301425,0.00032776,4]
[328046366,1716816640115,-2249.409867,0.00032776,2]
[328046367,1716816640125,-298.12642203,0.00032776,2]
[328046368,1716816640136,-150.0,0.000328,7]
[328046369,1716816640147,-1156.59,0.00032801,2]
[328046370,1716816640156,-3169.30142499,0.00032822,4]
[328046371,1716816640166,-391.66561671,0.00032849,2]
[328046372,1716816640177,-151.8,0.00032858,2]
[328046373,1716816640187,-151.8,0.00032865,2]
[328046374,1716816640197,-4170.7133395,0.00032865,2]
[328046375,1716816640207,-68368.7903442,0.00032865,2]
[328046376,1716816640217,-392.2724035,0.00032865,2]
[328046377,1716816640227,-2552.4933238,0.00032865,2]
[328046378,1716816640236,-151.8,0.00032866,2]
[328046379,1716816640246,-3169.30142499,0.00032868,4]
[328046380,1716816640256,-392.2724035,0.00032871,2]
[328046381,1716816640266,-2102.07682,0.00032871,2]
[328046382,1716816640277,-392.2724035,0.00032873,2]
[328046383,1716816640287,-1651.6603162,0.00032873,2]
[328046384,1716816640297,-202.2218218,0.00032874,4]
[328046385,1716816640307,-212.03274791,0.00032874,4]
[328046386,1716816640317,-205.11851024,0.00032874,4]
[328046387,1716816640327,-499.82131299,0.00032874,4]
[328046388,1716816640337,-1021.7503161,0.00032874,4]
[328046389,1716816640348,-485.57953486,0.00032874,4]
[328046390,1716816640359,-3152.5614987,0.00032874,4]
[328046391,1716816640368,-470.46497025,0.00032874,4]
[328046392,1716816640378,-360.51384595,0.00032874,4]
[328046393,1716816640388,-236.33427502,0.00032874,2]
[328046394,1716816640398,-325.80304841,0.00032874,4]
[328046395,1716816640408,-380.12069688,0.00032874,4]
[328046396,1716816640418,-643.32897965,0.00032874,4]
[328046397,1716816640429,-623.47972891,0.00032874,4]
[328046398,1716816640439,-792.50738408,0.00032874,2]
[328046399,1716816640448,-321.96055433,0.00032874,4]
[328046400,1716816640458,-428.82549784,0.00032874,4]
[328046401,1716816640468,-155.1952137,0.00032874,4]
[328046402,1716816640479,-234.22233037,0.00032874,4]
[328046403,1716816640488,-428.48017839,0.00032874,4]
[328046404,1716816640498,-456.62320281,0.00032874,4]
[328046405,1716816640509,-943.04918015,0.00032874,4]
[328046406,1716816640519,-184.50210729,0.00032874,4]
[328046407,1716816640529,-269572.12810763,0.00032875,11]
[328046408,1716816640539,-1089.55055981,0.00032875,15]
[328046409,1716816640550,-1064.85654335,0.00032875,4]
[328046410,1716816640562,-1615.20631682,0.00032875,2]
[328046411,1716816640572,-151.0,0.00032875,7]
[328046412,1716816640581,-5001.19044,0.00032875,7]
[328046413,1716816640591,-5001.19044,0.00032875,7]
[328046414,1716816640603,-236.663055,0.00032875,7]
[328046415,1716816640612,-151.0,0.00032875,7]
[328046416,1716816640622,-150.0,0.00032875,7]
[328046417,1716816640632,-500.0,0.00032876,7]
[328046418,1716816640642,-500.0,0.00032876,7]
[328046419,1716816640652,-500.0,0.00032876,7]
[328046420,1716816640662,-500.0,0.00032876,7]
[328046421,1716816640672,-500.0,0.00032876,7]
[328046422,1716816640682,-564.0841337,0.00032876,7]
[328046423,1716816640693,-500.0,0.00032876,7]
[328046424,1716816640703,-500.0,0.00032876,7]
[328046425,1716816640712,-601.97,0.00032876,7]
[328046426,1716816640722,-506.12346933,0.00032876,7]
[328046427,1716816640732,-500.0,0.00032876,7]
[328046428,1716816640742,-271.72,0.00032876,7]
[328046429,1716816640751,-500.0,0.00032876,7]
[328046430,1716816640761,-500.0,0.00032876,7]
[328046431,1716816640771,-500.0,0.00032876,7]
[328046432,1716816640781,-500.0,0.00032876,7]
[328046433,1716816640791,-500.0,0.00032876,7]
[328046434,1716816640800,-500.0,0.00032876,7]
[328046435,1716816640811,-618.29,0.00032876,7]
[328046436,1716816640820,-500.0,0.00032876,7]
[328046437,1716816640829,-500.0,0.00032876,7]
[328046438,1716816640839,-500.0,0.00032876,7]
[328046439,1716816640849,-449.14562634,0.00032876,7]
[328046440,1716816640859,-385.12229556,0.00032876,7]
[328046441,1716816640869,-500.0,0.00032876,7]
[328046442,1716816640879,-500.0,0.00032876,7]
[328046443,1716816640889,-500.0,0.00032876,7]
[328046444,1716816640899,-500.0,0.00032876,7]
[328046445,1716816640909,-500.0,0.00032876,7]
[328046446,1716816640919,-500.0,0.00032876,7]
[328046447,1716816640929,-500.0,0.00032876,7]
[328046448,1716816640939,-500.0,0.00032876,7]
[328046449,1716816640949,-500.0,0.00032876,7]
[328046450,1716816640959,-500.0,0.00032876,7]
[328046451,1716816640970,-500.0,0.00032876,7]
[328046452,1716816640980,-500.0,0.00032876,7]
[328046453,1716816640990,-500.0,0.00032876,7]
[328046454,1716816640999,-500.0,0.00032876,7]
[328046455,1716816641009,-500.0,0.00032876,7]
[328046456,1716816641019,-500.0,0.00032876,7]
[328046457,1716816641029,-500.0,0.00032876,7]
[328046458,1716816641039,-553.59825691,0.00032876,7]
[328046459,1716816641048,-529.72684755,0.00032876,7]
[328046460,1716816641058,-500.0,0.00032876,7]
[328046461,1716816641067,-500.0,0.00032876,7]
[328046462,1716816641077,-514.72672064,0.00032876,7]
[328046463,1716816641086,-500.0,0.00032876,7]
[328046464,1716816641099,-500.0,0.00032876,7]
[328046465,1716816641110,-500.0,0.00032876,7]
[328046466,1716816641119,-509.52676449,0.00032876,7]
[328046467,1716816641128,-500.0,0.00032876,7]
[328046468,1716816641138,-500.0,0.00032876,7]
[328046469,1716816641148,-500.0,0.00032876,7]
[328046470,1716816641158,-500.0,0.00032876,7]
[328046471,1716816641167,-500.0,0.00032876,7]
[328046472,1716816641178,-500.0,0.00032876,7]
[328046473,1716816641187,-500.0,0.00032876,7]
[328046474,1716816641196,-528.84,0.00032876,7]
[328046475,1716816641206,-500.0,0.00032876,7]
[328046476,1716816641215,-500.0,0.00032876,7]
[328046477,1716816641225,-500.0,0.00032876,7]